bitfinex-derivatives/quotes_SOLF0:USTF0_20250625
["timestamp","ask_amount","ask_price","bid_price","bid_amount"]
[1750864082315,4.35856997,145.03,144.99,6.8929]
[1750864082612,6.8921,145.02,144.99,6.8929]
[1750864083014,6.8921,145.02,145.0,6.8927]
[1750864083411,11.25006997,145.03,145.0,6.8927]
[1750864083710,4.35856997,145.03,144.97,51.55996266]
[1750864083902,4.35856997,145.03,144.98,8.57996266]
[1750864084102,6.8908,145.05,144.98,8.57996266]
[1750864084306,4.35856997,145.05,144.98,8.57996266]
[1750864084506,4.35856997,145.03,144.98,8.57996266]
[1750864084902,11.24926997,145.05,144.98,8.57996266]
[1750864085103,4.35856997,145.05,144.98,12.93853263]
[1750864085412,54.22826997,145.07,144.98,160.41853263]
[1750864085715,4.35856997,145.07,145.0,12.93853263]
[1750864085908,11.24806997,145.07,145.01,6.9703]
[1750864086108,11.24806997,145.07,145.01,49.9503]
[1750864086312,42.98,145.1,145.02,4.35856997]
[1750864086509,11.24636997,145.11,145.04,4.35856997]
[1750864086827,42.98,145.13,145.09,6.8882]
[1750864087119,42.98,145.13,145.05,42.98]
[1750864087316,42.98,145.13,145.07,2.3843]
[1750864087617,48.03260192,145.16,145.07,2.3843]
[1750864087918,48.03260192,145.16,145.14,6.886]
[1750864088218,42.98,145.16,145.09,42.98]
[1750864088411,7.24513461,145.16,145.11,6.8873]
[1750864088614,7.24513461,145.16,145.09,42.98]
[1750864088916,7.24513461,145.14,145.09,42.98]
[1750864089302,7.24513461,145.16,145.08,4.7406]
[1750864089507,7.24513461,145.16,145.13,6.8863]
[1750864089707,9.49288861,145.18,145.08,4.7406]
[1750864089925,7.24513461,145.17,145.08,4.7406]
[1750864090211,9.49288861,145.18,145.08,4.7406]
[1750864090414,6.8857,145.15,145.08,4.7406]
[1750864090818,7.24513461,145.16,145.08,4.7406]
[1750864091008,14.13033461,145.16,145.08,4.7406]
[1750864091209,7.24513461,145.17,145.11,6.8872]
[1750864091417,6.886,145.15,145.11,6.8872]
[1750864091717,7.24513461,145.16,145.12,6.887]
[1750864092119,7.24513461,145.16,145.08,4.7406]
[1750864092311,5.04421563,145.18,145.08,4.7406]
[1750864092511,7.24513461,145.17,145.08,4.7406]
[1750864092716,6.8852,145.16,145.08,11.98573461]
[1750864092921,7.24513461,145.17,145.08,11.98573461]
[1750864093115,14.13013461,145.17,145.08,11.98573461]
[1750864093316,14.13013461,145.17,145.13,6.8863]
[1750864093516,14.13013461,145.17,145.08,11.98573461]
[1750864094218,42.98,145.19,145.1,7.24513461]
[1750864094414,42.98,145.19,145.1,50.20513461]
[1750864094616,6.885,145.17,145.13,6.8863]
[1750864094815,50.22513461,145.19,145.13,6.8863]
[1750864095216,6.8852,145.17,145.13,6.8863]
[1750864095920,6.8852,145.16,145.13,6.8863]
[1750864096119,6.8852,145.16,145.1,42.96]
[1750864096120,50.22513461,145.19,145.1,42.96]
[1750864096425,50.22513461,145.19,145.08,4.7406]
[1750864096426,6.8869,145.13,145.08,4.7406]
[1750864096825,6.8869,145.13,145.1,6.8877]
[1750864097623,7.24513461,145.15,145.08,4.7406]
[1750864098527,42.98,145.19,145.08,4.7406]
[1750864098827,7.24513461,145.15,145.08,4.7406]
[1750864099130,14.13103461,145.15,145.12,6.887]
[1750864099423,6.8855,145.16,145.13,6.8863]
[1750864099621,7.24513461,145.17,145.13,6.8863]
[1750864099818,7.24513461,145.17,145.08,4.7406]
[1750864100130,7.24513461,145.18,145.08,4.7406]
[1750864100335,7.24513461,145.18,145.09,7.24513461]
[1750864100623,6.885,145.17,145.14,6.8859]
[1750864100826,7.24513461,145.18,145.09,7.24513461]
[1750864101130,6.8853,145.16,145.13,6.8865]
[1750864101625,14.13003461,145.17,145.08,4.7406]
[1750864101929,14.13003461,145.17,145.14,6.8859]
[1750864102225,6.8852,145.16,145.14,6.8859]
[1750864102730,6.8852,145.16,145.13,6.8864]
[1750864103027,6.8852,145.16,145.09,7.24513461]
[1750864103226,42.94,145.28,145.13,7.24513461]
[1750864103428,0.7444,145.24,145.13,7.24513461]
[1750864103630,6.8844,145.18,145.11,7.24513461]
[1750864103822,7.24513461,145.2,145.1,42.94]
[1750864104017,42.94,145.23,145.1,42.94]
[1750864104229,7.24513461,145.14,145.08,2.296]
[1750864104528,7.24513461,145.12,145.04,45.2783]
[1750864104727,7.24513461,145.12,145.04,42.94]
[1750864104929,7.24513461,145.1,145.06,6.8895]
[1750864105130,6.8888,145.09,145.06,6.8895]
[1750864105334,7.24513461,145.1,145.03,2.4598]
[1750864105722,6.8887,145.09,145.03,2.4598]
[1750864105922,8.97303461,145.12,145.03,2.4598]
[1750864106217,1.7279,145.12,145.03,2.4598]
[1750864106724,6.8881,145.1,145.07,6.8892]
[1750864107527,6.8882,145.1,145.07,6.8891]
[1750864107834,6.8882,145.1,145.03,2.4598]
[1750864108032,6.8879,145.11,145.08,6.8887]
[1750864108622,6.8884,145.1,145.07,6.8893]
[1750864109543,7.24513461,145.1,145.06,6.8897]
[1750864109736,7.24513461,145.1,145.03,2.4598]
[1750864110034,6.8891,145.08,145.05,6.8903]
[1750864110240,42.88,145.09,145.01,42.94]
[1750864110437,7.24513461,145.08,145.0,2.3383]
[1750864110735,7.24513461,145.06,145.0,2.3383]
[1750864111239,6.8907,145.05,145.02,6.8918]
[1750864111730,7.24513461,145.08,145.0,2.3383]
[1750864111935,12.38316962,145.08,145.0,2.3383]
[1750864112433,6.89,145.06,145.03,6.8911]
[1750864112733,12.38388929,145.08,145.0,2.3383]
[1750864112933,6.8903,145.06,145.02,6.8915]
[1750864113231,44.61,145.09,145.0,9.58343461]
[1750864113440,42.88,145.09,145.02,7.24513461]
[1750864114233,49.7689,145.09,145.02,7.24513461]
[1750864114825,6.8891,145.08,145.02,50.12513461]
[1750864115225,6.8891,145.08,145.05,6.8901]
[1750864116636,6.8891,145.08,145.06,6.8898]
[1750864116932,42.88,145.12,145.04,7.24513461]
[1750864117236,12.00765978,145.12,145.06,7.24513461]
[1750864117434,6.8874,145.12,145.06,7.24513461]
[1750864117635,687.56,145.15,145.11,6.8872]
[1750864117839,6.8864,145.14,145.11,6.8872]
[1750864118738,6.8867,145.13,145.1,6.8878]
[1750864119239,6.8871,145.12,145.09,6.8883]
[1750864119442,6.8871,145.12,145.07,2.3912]
[1750864119735,6.8871,145.12,145.08,6.8887]
[1750864119936,6.8871,145.12,145.07,2.3912]
[1750864120339,6.8871,145.12,145.09,6.8881]
[1750864121538,7.24513461,145.14,145.07,2.3912]
[1750864121733,7.24513461,145.14,145.06,42.88]
[1750864122036,6.8869,145.13,145.06,7.24513461]
[1750864122434,6.8869,145.13,145.07,4.7357]
[1750864122831,42.88,145.15,145.07,11.98083461]
[1750864123136,42.88,145.15,145.07,54.86083461]
[1750864123439,6.8864,145.14,145.11,6.8872]
[1750864124543,6.8866,145.13,145.11,6.8872]
[1750864125144,6.8863,145.14,145.11,6.8872]
[1750864125342,6.8863,145.14,145.12,6.887]
[1750864125543,6.8863,145.14,145.07,54.86083461]
[1750864125838,6.8867,145.13,145.11,6.8873]
[1750864126044,42.88,145.15,145.07,54.86083461]
[1750864126242,5.15794668,145.14,145.07,54.86083461]
[1750864126537,6.8873,145.12,145.09,6.888]
[1750864126742,6.8873,145.12,145.07,54.86083461]
[1750864127042,6.8868,145.13,145.1,6.8877]
[1750864129638,6.8871,145.12,145.1,6.8877]
[1750864130437,6.8868,145.13,145.1,6.8877]
[1750864130638,42.88,145.15,145.1,6.8877]
[1750864130834,5.17123494,145.14,145.1,6.8877]
[1750864131045,47.40625127,145.15,145.1,6.8877]
[1750864131247,12.41632572,145.14,145.07,47.6157]
[1750864131439,5.17119111,145.13,145.07,45.1834]
[1750864131640,7.24513461,145.14,145.08,6.8887]
[1750864131843,5.17257891,145.13,145.08,6.8887]
[1750864132144,7.24513461,145.14,145.08,6.8887]
[1750864132447,5.17202075,145.13,145.05,2.3589]
[1750864132648,7.24513461,145.14,145.05,2.3589]
[1750864132948,6.8878,145.11,145.09,6.8884]
[1750864133442,7.24513461,145.12,145.05,2.3589]
[1750864134147,6.8879,145.11,145.05,2.3589]
[1750864135462,6.8881,145.1,145.05,2.3589]
[1750864135645,5.16794496,145.13,145.05,2.3589]
[1750864135953,7.24513461,145.14,145.05,2.3589]
[1750864136150,6.8875,145.12,145.09,6.8882]
[1750864136353,7.24513461,145.14,145.09,6.8882]
[1750864136554,5.16815077,145.13,145.09,6.8882]
[1750864136753,6.8877,145.11,145.09,6.8882]
[1750864137958,42.88,145.15,145.06,7.24513461]
[1750864138158,5.16116724,145.14,145.08,7.24513461]
[1750864138359,42.88,145.15,145.09,6.60490429]
[1750864138560,4.34750429,145.17,145.09,8.87780429]
[1750864138857,6.8859,145.15,145.09,8.87780429]
[1750864139060,4.34750429,145.17,145.09,8.87780429]
[1750864139259,5.16279606,145.16,145.09,8.87780429]
[1750864139461,6.8861,145.14,145.12,6.8871]
[1750864139652,6.8861,145.14,145.09,8.87780429]
[1750864139849,6.8867,145.13,145.1,6.8876]
[1750864140254,6.8867,145.13,145.09,4.5303]
[1750864140457,6.8864,145.14,145.09,4.5303]
[1750864140652,7.24773627,145.14,145.09,2.2574]
[1750864140861,7.24773627,145.14,145.05,52.32663627]
[1750864141066,6.8873,145.12,145.05,52.32663627]
[1750864141665,6.8873,145.12,145.09,6.8881]
[1750864141968,6.8876,145.11,145.07,8.52574332]
[1750864142167,6.8876,145.11,145.07,6.889]
[1750864142360,49.96773627,145.1,145.05,2.3589]
[1750864142554,7.24773627,145.08,145.05,2.3589]
[1750864143061,6.8898,145.07,145.05,2.3589]
[1750864144170,6.8899,145.06,145.05,2.3589]
[1750864145069,6.8899,145.06,145.0,42.72]
[1750864145070,7.24773627,145.06,145.0,8.52574332]
[1750864145272,7.24773627,145.04,144.98,8.52574332]
[1750864145970,7.24773627,145.04,144.97,13.20294332]
[1750864146172,7.24773627,145.02,144.97,20.09684332]
[1750864146370,6.8925,145.01,144.97,4.6772]
[1750864146759,7.24773627,145.02,144.97,4.6772]
[1750864147169,6.8926,145.01,144.98,6.8934]
[1750864148675,7.24773627,145.04,144.97,4.6772]
[1750864149186,7.24773627,145.02,144.97,4.6772]
[1750864149664,6.8931,145.0,144.97,4.6772]
[1750864149865,7.24773627,145.02,144.97,2.4023]
[1750864150268,6.8927,145.01,144.98,6.8937]
[1750864152278,7.24773627,145.0,144.95,8.52574332]
[1750864152474,7.24773627,145.0,144.94,53.67284332]
[1750864152780,7.24773627,145.0,144.94,2.4271]
[1750864153284,6.894,144.98,144.94,2.4271]
[1750864153782,7.24773627,145.0,144.94,2.4271]
[1750864153984,7.24773627,145.0,144.95,6.8949]
[1750864154684,6.8935,144.99,144.96,6.8947]
[1750864154883,42.74,145.02,144.95,7.24773627]
[1750864155078,42.74,145.02,144.95,49.98773627]
[1750864155387,6.8917,145.03,145.0,6.8925]
[1750864155577,42.74,145.05,144.97,7.24773627]
[1750864155783,42.74,145.05,144.98,4.5111]
[1750864156082,49.98773627,145.08,144.99,49.98773627]
[1750864156389,49.98773627,145.08,145.02,6.8916]
[1750864156586,49.98773627,145.08,144.99,49.98773627]
[1750864156780,6.8911,145.04,145.01,6.8921]
[1750864157086,7.24773627,145.06,144.99,42.74]
[1750864157376,6.8926,145.01,144.98,11.4047]
[1750864157576,6.8926,145.01,144.98,4.5111]
[1750864157787,6.8926,145.01,144.98,2.2549]
[1750864157984,6.8929,145.0,144.98,2.2549]
[1750864158187,49.98773627,145.04,144.98,2.2549]
[1750864158379,49.98773627,145.04,144.98,9.1483]
[1750864158580,6.8928,145.0,144.98,9.1483]
[1750864159283,6.8928,145.0,144.98,2.2549]
[1750864159689,6.8925,145.01,144.98,2.2549]
[1750864159985,49.98773627,145.04,144.98,2.2549]
[1750864161683,6.8925,145.01,144.98,9.1484]
[1750864162582,6.8928,145.0,144.98,9.1484]
[1750864163175,6.8928,145.0,144.98,2.2549]
[1750864163680,6.8928,145.0,144.97,6.894]
[1750864163980,7.24773627,145.02,144.96,6.8945]
[1750864163981,6.8933,144.99,144.96,6.8945]
[1750864164779,6.8933,144.99,144.94,4.8898]
[1750864164780,42.74,145.04,144.94,4.8898]
[1750864164981,7.24773627,145.0,144.94,4.8898]
[1750864165285,7.24773627,144.98,144.94,4.8898]
[1750864165578,7.24773627,144.98,144.9,51.26574332]
[1750864165785,42.74,145.0,144.9,51.26574332]
[1750864165786,7.24773627,144.96,144.9,45.1129]
[1750864165988,6.8954,144.95,144.92,6.8963]
[1750864166280,7.24773627,144.96,144.9,45.1129]
[1750864166589,14.14253627,144.96,144.93,6.8959]
[1750864167379,49.98773627,145.0,144.9,52.36063627]
[1750864167581,646.8732,145.03,144.9,52.36063627]
[1750864167779,6.893,145.0,144.97,6.8939]
[1750864167977,7.24773627,145.01,144.97,6.8939]
[1750864168182,7.24773627,145.01,144.92,7.24773627]
[1750864168985,42.74,145.02,144.92,7.24773627]
[1750864168986,49.6322,145.02,144.99,6.893]
[1750864169284,42.74,145.02,144.99,6.893]
[1750864169484,6.8923,145.01,144.99,6.8931]
[1750864169882,42.74,145.02,144.93,15.77347959]
[1750864170080,42.74,145.02,144.93,7.24773627]
[1750864170286,6.8932,145.0,144.97,6.8939]
[1750864170480,42.74,145.02,144.97,6.8939]
[1750864170681,7.24773627,145.01,144.96,6.8945]
[1750864170888,7.24773627,144.99,144.91,7.24773627]
[1750864171079,7.24773627,144.99,144.9,53.63864332]
[1750864171284,6.8944,144.97,144.9,53.63864332]
[1750864171483,7.24773627,144.99,144.9,53.63864332]
[1750864171788,6.8941,144.98,144.95,6.8948]
[1750864171989,7.24773627,144.99,144.9,53.63864332]
[1750864172486,42.74,145.02,144.93,7.24773627]
[1750864172985,7.24773627,145.01,144.93,7.24773627]
[1750864173394,14.14033627,145.01,144.98,6.8935]
[1750864173589,7.24773627,145.01,144.98,6.8935]
[1750864176190,6.8928,145.0,144.98,6.8935]
[1750864176690,14.14013627,145.01,144.93,7.24773627]
[1750864177092,14.14013627,145.01,144.98,6.8933]
[1750864177686,14.14013627,145.01,144.9,45.1129]
[1750864177687,7.24773627,145.01,144.92,13.7926]
[1750864178490,6.8933,144.99,144.91,7.24773627]
[1750864178995,6.8933,144.99,144.96,6.8944]
[1750864179592,6.8933,144.99,144.97,6.8941]
[1750864180397,7.24773627,145.01,144.94,42.52]
[1750864180587,7.24773627,145.01,144.95,4.8117]
[1750864180788,42.74,145.02,144.96,2.4011]
[1750864181192,6.8926,145.01,144.99,6.893]
[1750864183096,49.6321,145.02,144.99,6.893]
[1750864183493,42.74,145.02,144.96,2.4011]
[1750864183702,49.76773627,145.05,144.96,2.4011]
[1750864183992,5.09856141,145.04,144.96,2.4011]
[1750864184295,652.48773627,145.1,144.99,7.24773627]
[1750864184296,42.52,145.08,144.99,7.24773627]
[1750864184496,5.09700787,145.07,145.04,6.8906]
[1750864184696,6.8897,145.07,145.04,6.8906]
[1750864184899,6.8897,145.07,144.99,49.76773627]
[1750864185092,42.52,145.08,144.99,49.76773627]
[1750864185297,49.4092,145.08,144.99,49.76773627]
[1750864185692,42.52,145.08,145.05,6.8901]
[1750864185897,6.8901,145.06,144.99,42.52]
[1750864186198,6.8901,145.06,145.03,6.891]
[1750864186699,6.8904,145.05,145.03,6.891]
[1750864186996,6.8904,145.05,144.99,42.52]
[1750864186997,7.24773627,145.05,144.96,44.9211]
[1750864187196,6.8909,145.04,144.96,44.9211]
[1750864187395,6.8909,145.04,145.01,6.8918]
[1750864187592,6.8909,145.04,144.96,44.9211]
[1750864187901,6.8917,145.03,144.96,44.9211]
[1750864188095,7.24773627,145.04,144.96,44.9211]
[1750864188400,6.8916,145.03,144.96,44.9211]
[1750864188599,6.8916,145.03,145.01,6.8922]
[1750864188998,49.76773627,145.04,144.96,44.9211]
[1750864189298,49.76773627,145.04,145.0,6.8924]
[1750864189802,6.8916,145.03,145.0,6.8924]
[1750864190502,49.76773627,145.04,145.0,6.8924]
[1750864191402,6.892,145.02,145.0,6.8924]
[1750864192004,6.892,145.02,144.99,15.46880433]
[1750864192297,6.892,145.02,144.99,8.57580433]
[1750864192502,6.892,145.02,144.98,8.57580433]
[1750864192902,6.892,145.02,144.99,6.8929]
[1750864193097,6.892,145.02,144.99,8.57580433]
[1750864193504,6.8914,145.03,144.99,8.57580433]
[1750864193804,42.52,145.07,144.99,8.57580433]
[1750864194006,7.24773627,145.08,145.03,6.891]
[1750864194007,6.8905,145.05,145.03,6.891]
[1750864194205,49.76773627,145.08,145.03,6.891]
[1750864194505,5.12212908,145.07,145.01,8.57580433]
[1750864194697,49.76773627,145.08,145.03,6.891]
[1750864195007,5.12242115,145.07,145.03,6.891]
[1750864195204,49.76773627,145.08,145.03,6.891]
[1750864195402,5.11973686,145.07,145.03,6.891]
[1750864195704,49.76773627,145.08,145.03,6.891]
[1750864196006,6.8903,145.06,145.03,6.891]
[1750864196206,6.8903,145.06,145.04,6.8908]
[1750864196998,6.8904,145.05,145.03,6.8911]
[1750864197402,7.24773627,145.04,145.0,8.57580433]
[1750864197602,6.8916,145.03,144.99,8.57580433]
[1750864198205,6.8916,145.03,145.01,6.892]
[1750864198415,14.13893627,145.04,145.01,6.892]
[1750864199110,6.8915,145.03,145.01,6.892]
[1750864199302,7.24773627,145.04,145.01,6.892]
[1750864199804,6.8913,145.03,145.01,6.892]
[1750864203407,4.35486175,145.04,144.99,8.57580433]
[1750864204110,6.8916,145.03,145.01,6.8919]
[1750864204614,4.35486175,145.04,144.99,8.57580433]
[1750864204807,4.35486175,145.0,144.98,8.57580433]
[1750864205007,4.35486175,145.0,144.96,10.97690433]
[1750864205203,6.8935,144.99,144.97,6.8941]
[1750864205404,6.8935,144.99,144.96,10.97690433]
[1750864206007,6.893,145.0,144.96,10.97690433]
[1750864206306,7.26103914,145.02,144.96,10.97690433]
[1750864206505,6.8935,144.99,144.97,6.8939]
[1750864206906,7.26103914,145.02,144.96,10.97690433]
[1750864207111,7.26103914,145.0,144.96,9.2954]
[1750864207306,49.46103914,145.0,144.95,10.93850433]
[1750864207505,7.26103914,144.98,144.95,2.3627]
[1750864207810,7.26103914,144.98,144.93,8.57580433]
[1750864208008,7.26103914,144.96,144.92,10.93370433]
[1750864208218,7.26103914,144.96,144.92,6.8963]
[1750864208911,6.8953,144.95,144.92,6.8963]
[1750864209103,6.8953,144.95,144.91,8.57580433]
[1750864209304,4.4626196,144.99,144.91,8.57580433]
[1750864209504,7.26103914,144.99,144.93,8.57580433]
[1750864209814,6.8946,144.97,144.94,2.3131]
[1750864210012,7.26103914,144.99,144.94,2.3131]
[1750864210406,6.895,144.96,144.94,2.3131]
[1750864211612,6.895,144.96,144.94,6.8956]
[1750864212010,14.15553914,144.97,144.94,6.8956]
[1750864212509,7.26103914,144.95,144.92,8.57580433]
[1750864212702,7.26103914,144.95,144.9,10.88890433]
[1750864213014,6.8952,144.95,144.93,6.8957]
[1750864213210,7.26103914,144.97,144.93,6.8957]
[1750864213616,6.8951,144.96,144.93,6.8957]
[1750864213912,12.37490949,144.99,144.92,8.57580433]
[1750864214312,12.37454044,144.99,144.92,8.57580433]
[1750864214710,19.2676725,144.99,144.96,6.8944]
[1750864215015,7.26103914,144.99,144.96,6.8944]
[1750864215216,14.15443914,144.99,144.97,6.894]
[1750864215711,14.15443914,144.99,144.92,8.57580433]
[1750864216118,6.8934,144.99,144.92,8.57580433]
[1750864216413,6.8938,144.98,144.92,8.57580433]
[1750864216914,6.8938,144.98,144.95,6.8949]
[1750864217911,6.8942,144.97,144.94,6.8954]
[1750864218213,7.26103914,144.99,144.92,8.57580433]
[1750864218415,7.26103914,144.99,144.93,8.57580433]
[1750864218614,6.894,144.98,144.93,8.57580433]
[1750864219018,6.894,144.98,144.95,6.8948]
[1750864220516,6.8942,144.97,144.95,6.8948]
[1750864221216,6.8939,144.98,144.95,6.8948]
[1750864221519,6.8939,144.98,144.96,6.8945]
[1750864224614,7.26103914,144.99,144.94,2.4013]
[1750864224816,42.2,145.0,144.94,2.4013]
[1750864225018,49.48103914,145.03,144.94,2.4013]
[1750864225211,6.8928,145.0,144.98,6.8934]
[1750864225411,7.26103914,145.01,144.96,2.3928]
[1750864225821,6.8932,145.0,144.97,6.8939]
[1750864226116,7.26103914,145.01,144.97,6.8939]
[1750864226320,6.8928,145.0,144.97,6.8939]
[1750864226819,7.26103914,145.01,144.97,6.8939]
[1750864227016,7.26103914,145.01,144.94,2.4013]
[1750864227220,5.09929903,145.02,144.94,2.4013]
[1750864227221,7.26103914,144.99,144.94,2.4013]
[1750864227622,6.8943,144.97,144.95,6.8949]
[1750864228429,6.8939,144.98,144.95,6.895]
[1750864228724,4.35799855,144.99,144.95,6.895]
[1750864228921,6.894,144.98,144.96,6.8946]
[1750864231621,6.894,144.98,144.95,6.8949]
[1750864232125,6.8942,144.97,144.95,6.8949]
[1750864233117,6.8942,144.97,144.94,9.2967]
[1750864233323,4.35799855,144.97,144.92,2.3928]
[1750864233722,6.8952,144.95,144.93,6.8958]
[1750864234226,6.8949,144.96,144.93,6.8958]
[1750864234418,6.8949,144.96,144.94,6.8955]
[1750864234815,6.8949,144.96,144.92,2.3928]
[1750864235016,6.8953,144.95,144.93,6.8959]
[1750864236021,6.8949,144.96,144.93,6.8959]
[1750864236622,6.8949,144.96,144.92,2.3928]
[1750864237125,6.8949,144.96,144.93,6.8958]
[1750864237828,6.8949,144.96,144.94,6.8954]
[1750864238015,41.84,144.99,144.92,2.3928]
[1750864238222,4.35799855,145.0,144.93,2.3315]
[1750864238527,4.35799855,145.0,144.95,6.8951]
[1750864238719,6.894,144.98,144.95,6.8951]
[1750864238920,4.35799855,144.98,144.94,6.8954]
[1750864239120,6.8943,144.97,144.94,6.8954]
[1750864239419,46.19799855,144.98,144.95,6.8949]
[1750864239620,6.8945,144.97,144.93,2.3315]
[1750864240323,48.734,144.98,144.93,2.3315]
[1750864240824,41.84,144.98,144.93,2.3315]
[1750864241230,6.8944,144.97,144.95,6.895]
[1750864241528,41.84,144.98,144.95,6.895]
[1750864241724,48.734,144.98,144.95,6.895]
[1750864241924,48.734,144.98,144.96,6.8946]
[1750864242125,4.35799855,144.99,144.93,2.3315]
[1750864242329,6.8937,144.99,144.93,2.3315]
[1750864242530,41.84,145.01,144.93,6.68949855]
[1750864242728,6.8923,145.01,144.95,4.35799855]
[1750864242931,4.35799855,145.02,144.95,4.35799855]
[1750864243127,4.35799855,145.02,144.98,6.8935]
[1750864243328,4.35799855,145.02,144.96,8.55943866]
[1750864243528,4.35799855,145.02,144.98,8.55943866]
[1750864243725,4.35799855,145.02,145.0,6.8925]
[1750864244431,41.84,145.03,144.99,15.45243866]
[1750864244832,6.8921,145.02,144.99,15.45243866]
[1750864246237,41.84,145.03,145.0,6.8927]
[1750864246635,6.8921,145.02,145.0,6.8927]
[1750864247332,645.28,145.06,144.98,8.55943866]
[1750864247637,41.84,145.06,145.0,8.55943866]
[1750864247826,6.8906,145.05,145.01,8.55943866]
[1750864248637,6.8906,145.05,145.02,8.55943866]
[1750864248827,48.73,145.06,145.02,8.55943866]
[1750864249029,48.73,145.06,145.03,6.891]
[1750864249529,41.84,145.06,145.01,8.55943866]
[1750864249729,4.35799855,145.05,145.02,15.45093866]
[1750864250034,4.35799855,145.05,145.02,8.55943866]
[1750864250235,4.35799855,145.03,144.99,8.55943866]
[1750864250435,4.35799855,145.03,144.98,8.55943866]
[1750864250630,6.8926,145.01,144.98,8.55943866]
[1750864250836,6.8926,145.01,144.98,15.45283866]
[1750864251046,6.8926,145.01,144.97,10.96783866]
[1750864251250,6.8926,145.01,144.99,6.893]
[1750864251446,6.892,145.02,144.99,6.893]
[1750864251748,46.19799855,145.06,144.99,8.55943866]
[1750864251938,11.24799855,145.06,145.01,8.55943866]
[1750864252343,11.24799855,145.06,145.03,6.8909]
[1750864253048,11.24799855,145.06,145.04,6.8908]
[1750864253356,4.35799855,145.06,145.04,6.8908]
[1750864253552,4.35799855,145.06,145.05,6.8904]
[1750864253851,4.35799855,145.06,145.01,8.55943866]
[1750864253852,11.24799855,145.06,145.01,8.55943866]
[1750864254350,11.24769855,145.07,145.04,6.8906]
[1750864254746,6.8897,145.07,145.05,6.8903]
[1750864254948,46.19799855,145.09,145.03,8.55943866]
[1750864255243,13.7708,145.16,145.04,12.91743721]
[1750864255244,4.35799855,145.11,145.04,12.91743721]
[1750864255548,41.84,145.12,145.05,8.55943866]
[1750864255945,6.8878,145.11,145.08,6.8885]
[1750864256547,48.7272,145.12,145.09,6.8884]
[1750864257058,48.7275,145.12,145.09,6.8884]
[1750864258053,11.24479855,145.13,145.1,6.8877]
[1750864258247,4.35799855,145.13,145.1,6.8877]
[1750864258448,4.35799855,145.11,145.07,2.4653]
[1750864258956,11.24569855,145.11,145.08,6.8886]
[1750864259661,4.35799855,145.11,145.06,2.3199]
[1750864259949,4.35799855,145.11,145.03,57.13843721]
[1750864260454,4.35799855,145.11,145.04,8.55943866]
[1750864260650,4.35799855,145.11,145.09,6.8882]
[1750864260845,4.35799855,145.11,145.05,4.35799855]
[1750864261050,4.35799855,145.11,145.09,6.8881]
[1750864261959,6.8872,145.12,145.09,6.8881]
[1750864262159,11.24479855,145.13,145.1,6.8875]
[1750864262357,6.8868,145.13,145.07,48.10009855]
[1750864262761,6.8871,145.12,145.07,48.10009855]
[1750864262960,4.35799855,145.13,145.07,48.10009855]
[1750864263258,41.82,145.15,145.09,4.35799855]
[1750864263446,4.35799855,145.17,145.1,2.3752]
[1750864264151,41.48,145.18,145.11,45.83799855]
[1750864264352,41.48,145.18,145.12,2.2212]
[1750864264559,11.24169855,145.19,145.12,2.2212]
[1750864264748,41.48,145.21,145.13,4.35799855]
[1750864264954,45.83799855,145.21,145.13,6.65559855]
[1750864265153,6.8826,145.22,145.19,6.8837]
[1750864265458,647.2963,145.27,145.15,4.35799855]
[1750864265459,4.35799855,145.21,145.15,45.83799855]
[1750864265660,4.35799855,145.19,145.13,2.2976]
[1750864266056,4.35799855,145.2,145.13,2.2976]
[1750864266455,4.35799855,145.2,145.13,6.65559855]
[1750864266846,4.35799855,145.22,145.13,6.65559855]
[1750864267648,6.883,145.21,145.18,6.8838]
[1750864268249,48.3618,145.24,145.2,6.8831]
[1750864268456,48.3618,145.24,145.16,2.3308]
[1750864268457,41.48,145.24,145.16,2.3308]
[1750864268655,4.35799855,145.22,145.16,43.7908]